fUSD/lending_fUSD_20250512
["ID","MTS","AMOUNT","RATE_DAILY","PERIOD"]
[360831517,1747056633975,-2533.66838921,0.0001365,2]
[360831519,1747056633985,-3451.41209424,0.00013697,2]
[360831521,1747056633995,-400.0,0.00013698,2]
[360831523,1747056634004,-400.0,0.00013698,2]
[360831525,1747056634014,-400.0,0.00013698,2]
[360831527,1747056634023,-400.0,0.00013698,2]
[360831529,1747056634034,-400.0,0.00013698,2]
[360831531,1747056634044,-400.0,0.00013698,2]
[360831533,1747056634053,-444.65,0.00013698,2]
[360831535,1747056634063,-409.0,0.00013698,2]
[360831537,1747056634072,-565.37,0.00013698,2]
[360831539,1747056634086,-400.0,0.00013698,2]
[360831541,1747056634096,-984.47,0.00013698,2]
[360831543,1747056634105,-400.0,0.00013698,2]
[360831545,1747056634115,-400.0,0.00013698,2]
[360831547,1747056634125,-1497.79,0.00013698,2]
[360831549,1747056634135,-400.0,0.00013698,2]
[360831551,1747056634145,-400.0,0.00013698,2]
[360831553,1747056634156,-400.0,0.00013698,2]
[360831555,1747056634166,-419.54609541,0.00013698,2]
[360831557,1747056634177,-400.0,0.00013698,2]
[360831559,1747056634188,-422.4,0.00013698,2]
[360831561,1747056634198,-400.0,0.00013698,2]
[360831563,1747056634209,-400.0,0.00013698,2]
[360831565,1747056634219,-400.0,0.00013698,2]
[360831567,1747056634229,-400.0,0.00013698,2]
[360831569,1747056634239,-400.0,0.00013698,2]
[360831571,1747056634249,-400.0,0.00013698,2]
[360831573,1747056634258,-400.0,0.00013698,2]
[360831575,1747056634268,-400.0,0.00013698,2]
[360831577,1747056634278,-400.0,0.00013698,2]
[360831579,1747056634289,-400.0,0.00013698,2]
[360831581,1747056634299,-400.0,0.00013698,2]
[360831583,1747056634309,-400.0,0.00013698,2]
[360831585,1747056634321,-400.0,0.00013698,2]
[360831587,1747056634336,-400.0,0.00013698,2]
[360831589,1747056634347,-762.35,0.00013698,2]
[360831591,1747056634358,-289.31597303,0.00013698,2]
[360831593,1747056634369,-400.0,0.00013698,2]
[360831595,1747056634380,-400.0,0.00013698,2]
[360831597,1747056634391,-400.0,0.00013698,2]
[360831599,1747056634401,-402.7455714,0.00013698,2]
[360831601,1747056634412,-403.21895261,0.00013698,2]
[360831603,1747056634422,-407.01330325,0.00013698,2]
[360831605,1747056634433,-401.79905766,0.00013698,2]
[360831607,1747056634443,-402.52506296,0.00013698,2]
[360831609,1747056634454,-403.04893253,0.00013698,2]
[360831611,1747056634465,-400.0,0.00013698,2]
[360831613,1747056634475,-400.0,0.00013698,2]
[360831615,1747056634486,-400.0,0.00013698,2]
[360831617,1747056634495,-400.0,0.00013698,2]
[360831619,1747056634506,-401.47773773,0.00013698,2]
[360831622,1747056634520,-400.0,0.00013698,2]
[360831624,1747056634530,-413.6,0.00013698,2]
[360831626,1747056634540,-293.47404179,0.00013698,2]
[360831628,1747056634550,-401.8284495,0.00013698,2]
[360831630,1747056634561,-400.0,0.00013698,2]
[360831632,1747056634571,-400.0,0.00013698,2]
[360831633,1747056634584,-400.0,0.00013698,2]
[360831635,1747056634593,-400.0,0.00013698,2]
[360831638,1747056634604,-515.2051545,0.00013698,2]
[360831640,1747056634614,-400.0,0.00013698,2]
[360831642,1747056634624,-930.51,0.00013698,2]
[360831644,1747056634634,-400.0,0.00013698,2]
[360831646,1747056634644,-2546.54,0.00013698,2]
[360831648,1747056634654,-400.0,0.00013698,2]
[360831650,1747056634664,-4242.91,0.00013698,2]
[360831652,1747056634675,-542.62,0.00013698,2]
[360831653,1747056634688,-702.73,0.00013698,2]
[360831656,1747056634698,-400.0,0.00013698,2]
[360831657,1747056634709,-400.0,0.00013698,2]
[360831660,1747056634721,-400.0,0.00013698,2]
[360831661,1747056634732,-842.86,0.00013698,2]
[360831663,1747056634743,-400.0,0.00013698,2]
[360831665,1747056634753,-400.0,0.00013698,2]
[360831667,1747056634764,-729.9,0.00013698,2]
[360831669,1747056634775,-400.0,0.00013698,2]
[360831671,1747056634785,-450.0,0.00013698,2]
[360831673,1747056634796,-745.66,0.00013698,2]
[360831676,1747056634806,-23749.985475,0.00013698,2]
[360831678,1747056634816,-1243.09,0.00013698,2]
[360831679,1747056634829,-400.0,0.00013698,2]
[360831681,1747056634841,-400.0,0.00013698,2]
[360831683,1747056634851,-401.11,0.00013698,2]
[360831685,1747056634861,-400.0,0.00013698,2]
[360831688,1747056634872,-450.0,0.00013698,2]
[360831690,1747056634882,-139357.67,0.00013698,2]
[360831692,1747056634892,-400.0,0.00013698,2]
[360831694,1747056634902,-400.0,0.00013698,2]
[360831696,1747056634911,-400.0,0.00013698,2]
[360831698,1747056634920,-400.0,0.00013698,2]
[360831700,1747056634930,-1386.12,0.00013698,2]
[360831702,1747056634940,-400.0,0.00013698,2]
[360831704,1747056634949,-412.98,0.00013698,2]
[360831706,1747056634959,-3478.31,0.00013698,2]
[360831708,1747056634968,-2830.05,0.00013698,2]
[360831710,1747056634977,-400.0,0.00013698,2]
[360831712,1747056634986,-1539.85,0.00013698,2]
[360831714,1747056634996,-400.0,0.00013698,2]
[360831716,1747056635006,-400.0,0.00013698,2]
[360831718,1747056635015,-1200.26,0.00013698,2]
[360831720,1747056635024,-400.0,0.00013698,2]
[360831722,1747056635032,-152.5,0.00013698,2]
[360831724,1747056635042,-400.0,0.00013698,2]
[360831726,1747056635052,-400.0,0.00013698,2]
[360831728,1747056635061,-400.0,0.00013698,2]
[360831730,1747056635070,-402.29,0.00013698,2]
[360831732,1747056635083,-280.45,0.00013698,2]
[360831734,1747056635092,-400.0,0.00013698,2]
[360831736,1747056635101,-198.02535902,0.00013698,2]
[360831738,1747056635110,-289.61710536,0.00013698,2]
[360831739,1747056635119,-5942.92,0.00013698,2]
[360831741,1747056635129,-400.0,0.00013698,2]
[360831743,1747056635138,-400.0,0.00013698,2]
[360831745,1747056635148,-689.72,0.00013698,2]
[360831748,1747056635157,-461.54,0.00013698,2]
[360831749,1747056635167,-400.0,0.00013698,2]
[360831752,1747056635177,-400.0,0.00013698,2]
[360831754,1747056635187,-400.0,0.00013698,2]
[360831756,1747056635197,-79069.07,0.00013698,2]
[360831758,1747056635206,-400.0,0.00013698,2]
[360831760,1747056635215,-400.0,0.00013698,2]
[360831762,1747056635225,-400.0,0.00013698,2]
[360831764,1747056635235,-1954.09,0.00013698,2]
[360831766,1747056635244,-400.0,0.00013698,2]
[360831768,1747056635254,-400.0,0.00013698,2]
[360831770,1747056635263,-30122.0,0.00013698,2]
[360831772,1747056635275,-2064.71,0.00013698,2]
[360831774,1747056635284,-400.0,0.00013698,2]
[360831776,1747056635294,-400.0,0.00013698,2]
[360831777,1747056635305,-400.0,0.00013698,2]
[360831779,1747056635314,-400.0,0.00013698,2]
[360831781,1747056635323,-400.0,0.00013698,2]
[360831783,1747056635337,-1439.99,0.00013698,2]
[360831786,1747056635346,-400.0,0.00013698,2]
[360831787,1747056635356,-400.0,0.00013698,2]
[360831790,1747056635365,-400.0,0.00013698,2]
[360831792,1747056635375,-400.0,0.00013698,2]
[360831793,1747056635384,-501.85637443,0.00013698,2]
[360831795,1747056635393,-400.0,0.00013698,2]
[360831797,1747056635402,-619.58,0.00013698,2]
[360831799,1747056635412,-400.0,0.00013698,2]
[360831802,1747056635421,-400.0,0.00013698,2]
[360831803,1747056635431,-400.0,0.00013698,2]
[360831804,1747056635439,-400.0,0.00013698,2]
[360831805,1747056635448,-400.0,0.00013698,2]
[360831806,1747056635457,-405.52173532,0.00013698,2]
[360831807,1747056635466,-400.0,0.00013698,2]
[360831808,1747056635475,-400.0,0.00013698,2]
[360831809,1747056635484,-400.0,0.00013698,2]
[360831810,1747056635493,-208.73621754,0.00013698,2]
[360831811,1747056635502,-400.0,0.00013698,2]
[360831812,1747056635512,-400.0,0.00013698,2]
[360831813,1747056635523,-151.0,0.00013699,2]
[360831815,1747056635532,-200.0,0.00013699,2]
[360831817,1747056635541,-451.02141991,0.00013699,2]
[360831819,1747056635551,-500.0,0.00013699,2]
[360831821,1747056635560,-500.0,0.00013699,2]
[360831822,1747056635569,-500.0,0.00013699,2]
[360831824,1747056635580,-525.0,0.00013699,2]
[360831826,1747056635589,-2533.66838921,0.00013702,2]
[360831828,1747056635598,-2003.75237005,0.00013703,2]
[360831830,1747056635608,-2533.66838921,0.00013754,2]
[360831832,1747056635617,-400.0,0.00013755,2]
[360831834,1747056635626,-400.0,0.00013755,2]
[360831836,1747056635636,-689.72,0.00013755,2]
[360831838,1747056635646,-400.0,0.00013755,2]
[360831840,1747056635655,-400.0,0.00013755,2]
[360831842,1747056635665,-2003.75237005,0.00013755,2]
[360831844,1747056635677,-7516.6906,0.00013772,2]
[360831846,1747056635687,-2347.53412,0.0001379,2]
[360831848,1747056635696,-196.0,0.000138,2]
[360831850,1747056635705,-500.0,0.000138,2]
[360831852,1747056635715,-2533.66838921,0.00013806,2]
[360831854,1747056635725,-2003.75237005,0.00013808,2]
[360831856,1747056635736,-2533.66838921,0.00013857,2]
[360831858,1747056635746,-161.48497593,0.00013858,2]
[360831860,1747056635756,-2003.75237005,0.0001386,2]
[360831862,1747056635768,-171.33993634,0.00013866,2]
[360831864,1747056635778,-171.24339766,0.00013866,2]
[360831866,1747056635788,-200.0,0.00013872,2]
[360831868,1747056635797,-200.0,0.00013872,2]
[360831870,1747056635807,-200.0,0.00013872,2]
[360831872,1747056635816,-23749.985475,0.00013872,2]
[360831874,1747056635826,-400.0,0.00013894,2]
[360831876,1747056635838,-400.0,0.00013894,2]
[360831878,1747056635848,-400.0,0.00013894,2]
[360831880,1747056635858,-400.0,0.00013894,2]
[360831882,1747056635867,-400.0,0.00013894,2]
[360831884,1747056635876,-300.0,0.00013894,2]
[360831886,1747056635885,-400.0,0.00013894,2]
[360831888,1747056635894,-689.72,0.00013894,2]
[360831890,1747056635903,-400.0,0.00013894,2]
[360831892,1747056635913,-400.0,0.00013894,2]
[360831894,1747056635923,-1954.09,0.00013894,2]
[360831896,1747056635933,-2064.71,0.00013894,2]
[360831898,1747056635943,-400.0,0.00013894,2]
[360831900,1747056635952,-400.0,0.00013894,2]
[360831902,1747056635962,-400.0,0.00013894,2]
[360831904,1747056635971,-400.0,0.00013894,2]
[360831906,1747056635980,-400.0,0.00013895,2]
[360831908,1747056635989,-400.0,0.00013895,2]
[360831910,1747056635998,-693.93,0.00013895,2]
[360831912,1747056636008,-400.0,0.00013895,2]
[360831914,1747056636017,-400.0,0.00013895,2]
[360831916,1747056636026,-400.0,0.00013895,2]
[360831918,1747056636035,-400.0,0.00013895,2]
[360831920,1747056636044,-188.04,0.00013895,2]
[360831922,1747056636053,-400.0,0.00013895,2]
[360831924,1747056636062,-400.0,0.00013895,2]
[360831926,1747056636072,-400.0,0.00013895,2]
[360831928,1747056636084,-400.0,0.00013895,2]
[360831930,1747056636093,-400.0,0.00013895,2]
[360831932,1747056636102,-400.0,0.00013895,2]
[360831934,1747056636111,-400.0,0.00013895,2]
[360831936,1747056636120,-400.0,0.00013895,2]
[360831938,1747056636129,-400.0,0.00013895,2]
[360831940,1747056636138,-400.0,0.00013895,2]
[360831942,1747056636147,-400.0,0.00013895,2]
[360831944,1747056636157,-400.0,0.00013895,2]
[360831946,1747056636167,-400.0,0.00013895,2]
[360831948,1747056636176,-400.0,0.00013895,2]
[360831950,1747056636186,-400.0,0.00013895,2]
[360831952,1747056636195,-400.0,0.00013895,2]
[360831954,1747056636204,-400.0,0.00013895,2]
[360831966,1747056636370,-400.0,0.00013895,2]
[360831967,1747056636380,-400.0,0.00013895,2]
[360831968,1747056636389,-400.0,0.00013895,2]
[360831969,1747056636398,-429.42,0.00013895,2]
[360831970,1747056636407,-189.55236865,0.00013895,2]
[360831971,1747056636416,-152.07893543,0.00013895,2]
[360831972,1747056636425,-400.0,0.00013895,2]
[360831973,1747056636434,-400.0,0.00013895,2]
[360831974,1747056636443,-400.0,0.00013895,2]
[360831975,1747056636452,-400.0,0.00013895,2]
[360831976,1747056636461,-400.0,0.00013895,2]
[360831977,1747056636471,-400.0,0.00013895,2]
[360831978,1747056636480,-400.0,0.00013895,2]
[360831979,1747056636489,-400.0,0.00013895,2]
[360831980,1747056636498,-514.21,0.00013895,2]
[360831981,1747056636507,-400.0,0.00013895,2]
[360831982,1747056636516,-400.0,0.00013895,2]
[360831983,1747056636526,-400.0,0.00013895,2]
[360831984,1747056636535,-400.0,0.00013895,2]
[360831985,1747056636544,-437.83,0.00013895,2]
[360831986,1747056636553,-400.0,0.00013895,2]
[360831987,1747056636563,-400.0,0.00013895,2]
[360831988,1747056636572,-139357.67,0.00013895,2]
[360831989,1747056636586,-400.0,0.00013895,2]
[360831990,1747056636596,-400.0,0.00013895,2]
[360831991,1747056636605,-400.0,0.00013895,2]
[360831992,1747056636614,-3478.31,0.00013895,2]
[360831993,1747056636624,-400.0,0.00013895,2]
[360831994,1747056636634,-158.139484,0.00013895,2]
[360831995,1747056636644,-360.42458681,0.00013895,2]
[360831996,1747056636654,-2830.05,0.00013895,2]
[360831997,1747056636663,-400.0,0.00013895,2]
[360831998,1747056636674,-227.32,0.00013895,2]
[360831999,1747056636684,-225.37,0.00013895,2]
[360832000,1747056636697,-1539.85,0.00013895,2]
[360832001,1747056636708,-400.0,0.00013895,2]
[360832002,1747056636717,-151.0,0.00013895,2]
[360832003,1747056636727,-400.0,0.00013895,2]
[360832004,1747056636739,-1200.26,0.00013895,2]
[360832005,1747056636748,-400.0,0.00013895,2]
[360832006,1747056636758,-266.14,0.00013895,2]
[360832007,1747056636767,-400.0,0.00013895,2]
[360832008,1747056636776,-400.0,0.00013895,2]
[360832009,1747056636785,-528.56,0.00013895,2]
[360832010,1747056636794,-400.0,0.00013895,2]
[360832011,1747056636803,-400.0,0.00013895,2]
[360832012,1747056636812,-402.29,0.00013895,2]
[360832013,1747056636821,-5942.92,0.00013895,2]
[360832014,1747056636832,-400.0,0.00013895,2]
[360832015,1747056636841,-400.0,0.00013895,2]
[360832016,1747056636849,-461.54,0.00013895,2]
[360832017,1747056636858,-2182.28,0.00013895,2]
[360832018,1747056636867,-151.0,0.00013895,2]
[360832019,1747056636876,-400.0,0.00013895,2]
[360832020,1747056636885,-151.0,0.00013895,2]
[360832021,1747056636894,-15626.81,0.00013895,2]
[360832022,1747056636903,-79069.07,0.00013895,2]
[360832023,1747056636912,-400.0,0.00013895,2]
[360832024,1747056636921,-400.0,0.00013895,2]
[360832025,1747056636929,-411.11,0.00013895,2]
[360832026,1747056636937,-400.0,0.00013895,2]
[360832027,1747056636945,-3811.4,0.00013895,2]
[360832028,1747056636954,-151.0,0.00013895,2]
[360832029,1747056636963,-482.1,0.00013895,2]
[360832030,1747056636971,-400.0,0.00013895,2]
[360832031,1747056636979,-30122.0,0.00013895,2]
[360832032,1747056636987,-151.0,0.00013895,2]
[360832033,1747056636995,-400.0,0.00013895,2]
[360832034,1747056637004,-400.0,0.00013895,2]
[360832035,1747056637013,-1439.99,0.00013895,2]
[360832036,1747056637021,-400.0,0.00013895,2]
[360832037,1747056637030,-400.0,0.00013895,2]
[360832038,1747056637039,-619.58,0.00013895,2]
[360832039,1747056637048,-400.0,0.00013895,2]
[360832040,1747056637057,-400.0,0.00013895,2]
[360832041,1747056637066,-215.46417846,0.00013896,2]
[360832042,1747056637074,-400.0,0.00013896,2]
[360832043,1747056637087,-400.0,0.00013896,2]
[360832044,1747056637095,-400.0,0.00013896,2]
[360832045,1747056637104,-400.0,0.00013896,2]
[360832046,1747056637113,-353.575678,0.00013896,2]
[360832047,1747056637122,-444.65,0.00013896,2]
[360832048,1747056637131,-409.0,0.00013896,2]
[360832049,1747056637141,-565.37,0.00013896,2]
[360832050,1747056637149,-400.0,0.00013896,2]
[360832051,1747056637158,-984.47,0.00013896,2]
[360832052,1747056637167,-400.0,0.00013896,2]
[360832053,1747056637176,-400.0,0.00013896,2]
[360832054,1747056637183,-1497.79,0.00013896,2]
[360832055,1747056637192,-400.0,0.00013896,2]
[360832056,1747056637202,-274.88189058,0.00013896,2]
[360832057,1747056637211,-400.0,0.00013896,2]
[360832058,1747056637221,-400.0,0.00013896,2]
[360832059,1747056637230,-400.0,0.00013896,2]
[360832060,1747056637239,-400.0,0.00013896,2]
[360832061,1747056637249,-400.0,0.00013896,2]
[360832062,1747056637258,-400.0,0.00013896,2]
[360832063,1747056637268,-400.0,0.00013896,2]
[360832064,1747056637277,-400.0,0.00013896,2]
[360832065,1747056637287,-400.0,0.00013896,2]
[360832066,1747056637296,-400.0,0.00013896,2]
[360832067,1747056637306,-400.0,0.00013896,2]
[360832068,1747056637315,-400.0,0.00013896,2]
[360832069,1747056637325,-400.0,0.00013896,2]
[360832070,1747056637338,-762.35,0.00013896,2]
[360832071,1747056637347,-400.0,0.00013896,2]
[360832072,1747056637356,-400.0,0.00013896,2]
[360832073,1747056637366,-400.0,0.00013896,2]
[360832074,1747056637376,-400.0,0.00013896,2]
[360832075,1747056637385,-400.0,0.00013896,2]
[360832076,1747056637394,-413.6,0.00013896,2]
[360832077,1747056637403,-400.0,0.00013896,2]
[360832078,1747056637412,-400.0,0.00013896,2]
[360832079,1747056637422,-400.0,0.00013896,2]
[360832080,1747056637431,-930.51,0.00013896,2]
[360832081,1747056637440,-400.0,0.00013896,2]
[360832082,1747056637450,-2546.54,0.00013896,2]
[360832083,1747056637460,-400.0,0.00013896,2]
[360832084,1747056637470,-4242.91,0.00013896,2]
[360832085,1747056637480,-542.62,0.00013896,2]
[360832086,1747056637490,-702.73,0.00013896,2]
[360832087,1747056637500,-400.0,0.00013896,2]
[360832088,1747056637509,-400.0,0.00013896,2]
[360832089,1747056637519,-400.0,0.00013896,2]
[360832090,1747056637528,-842.86,0.00013896,2]
[360832091,1747056637538,-400.0,0.00013896,2]
[360832092,1747056637548,-729.9,0.00013896,2]
[360832093,1747056637558,-400.0,0.00013896,2]
[360832094,1747056637567,-745.66,0.00013896,2]
[360832095,1747056637577,-158.058379,0.00013896,2]
[360832096,1747056637589,-1243.09,0.00013896,2]
[360832097,1747056637599,-401.11,0.00013896,2]
[360832098,1747056637610,-484.68,0.00013896,2]
[360832099,1747056637620,-151.0,0.00013896,2]
[360832100,1747056637631,-151.0,0.00013896,2]
[360832101,1747056637640,-139357.67,0.00013896,2]
[360832102,1747056637651,-400.0,0.00013896,2]
[360832103,1747056637660,-400.0,0.00013896,2]
[360832104,1747056637671,-400.0,0.00013896,2]
[360832105,1747056637685,-151.0,0.00013896,2]
[360832106,1747056637695,-151.0,0.00013896,2]
[360832107,1747056637705,-1386.12,0.00013896,2]
[360832108,1747056637716,-151.0,0.00013896,2]
[360832109,1747056637726,-400.0,0.00013896,2]
[360832110,1747056637735,-3478.31,0.00013896,2]
[360832111,1747056637746,-400.0,0.00013896,2]
[360832112,1747056637756,-155.331199,0.00013896,2]
[360832113,1747056637766,-400.0,0.00013896,2]
[360832114,1747056637776,-1200.26,0.00013896,2]
[360832115,1747056637786,-243.16,0.00013896,2]
[360832116,1747056637795,-402.29,0.00013896,2]
[360832117,1747056637804,-5942.92,0.00013896,2]
[360832118,1747056637813,-461.54,0.00013896,2]
[360832119,1747056637823,-151.0,0.00013896,2]
[360832120,1747056637836,-79069.07,0.00013896,2]
[360832121,1747056637846,-400.0,0.00013896,2]
[360832122,1747056637856,-151.0,0.00013896,2]
[360832123,1747056637865,-30122.0,0.00013896,2]
[360832124,1747056637874,-400.0,0.00013896,2]
[360832125,1747056637884,-400.0,0.00013896,2]
[360832126,1747056637893,-400.0,0.00013896,2]
[360832127,1747056637903,-400.0,0.00013897,2]
[360832128,1747056637912,-400.0,0.00013897,2]
[360832129,1747056637921,-400.0,0.00013897,2]
[360832130,1747056637930,-400.0,0.00013897,2]
[360832131,1747056637940,-400.0,0.00013897,2]
[360832132,1747056637949,-400.0,0.00013897,2]
[360832133,1747056637959,-400.0,0.00013897,2]
[360832134,1747056637968,-400.0,0.00013897,2]
[360832135,1747056637977,-419.53,0.00013897,2]
[360832136,1747056637987,-400.0,0.00013897,2]
[360832137,1747056637996,-550.55,0.00013897,2]
[360832138,1747056638006,-400.0,0.00013897,2]
[360832139,1747056638017,-880.25,0.00013897,2]
[360832140,1747056638026,-400.0,0.00013897,2]
[360832141,1747056638036,-400.0,0.00013897,2]
[360832142,1747056638046,-471.71,0.00013897,2]
[360832143,1747056638056,-400.0,0.00013897,2]
[360832144,1747056638066,-408.64,0.00013897,2]
[360832145,1747056638076,-400.0,0.00013897,2]
[360832146,1747056638090,-400.0,0.00013897,2]
[360832147,1747056638099,-400.0,0.00013897,2]
[360832148,1747056638109,-400.0,0.00013897,2]
[360832149,1747056638119,-400.0,0.00013897,2]
[360832150,1747056638129,-400.0,0.00013897,2]
[360832151,1747056638138,-400.0,0.00013897,2]
[360832152,1747056638148,-400.0,0.00013897,2]
[360832153,1747056638157,-400.0,0.00013897,2]
[360832154,1747056638167,-400.0,0.00013897,2]
[360832155,1747056638176,-400.0,0.00013897,2]
[360832156,1747056638185,-400.0,0.00013897,2]
[360832157,1747056638195,-400.0,0.00013897,2]
[360832158,1747056638204,-400.0,0.00013897,2]
[360832159,1747056638214,-400.0,0.00013897,2]
[360832160,1747056638224,-400.0,0.00013897,2]
[360832162,1747056638234,-400.0,0.00013897,2]
[360832163,1747056638243,-400.0,0.00013897,2]
[360832164,1747056638253,-274.55662777,0.00013897,2]
[360832165,1747056638263,-400.0,0.00013897,2]
[360832166,1747056638273,-400.0,0.00013897,2]
[360832167,1747056638283,-400.0,0.00013897,2]
[360832168,1747056638293,-444.65,0.00013897,2]
[360832169,1747056638303,-409.0,0.00013897,2]
[360832170,1747056638312,-565.37,0.00013897,2]
[360832171,1747056638322,-400.0,0.00013897,2]
[360832172,1747056638335,-984.47,0.00013897,2]
[360832173,1747056638344,-400.0,0.00013897,2]
[360832174,1747056638354,-400.0,0.00013897,2]
[360832175,1747056638364,-1497.79,0.00013897,2]
[360832176,1747056638373,-400.0,0.00013897,2]
[360832177,1747056638383,-400.0,0.00013897,2]
[360832178,1747056638393,-400.0,0.00013897,2]
[360832179,1747056638403,-400.0,0.00013897,2]
[360832180,1747056638412,-400.0,0.00013897,2]
[360832181,1747056638422,-400.0,0.00013897,2]
[360832182,1747056638431,-400.0,0.00013897,2]
[360832183,1747056638441,-400.0,0.00013897,2]
[360832184,1747056638451,-400.0,0.00013897,2]
[360832185,1747056638461,-400.0,0.00013897,2]
[360832186,1747056638471,-400.0,0.00013897,2]
[360832187,1747056638482,-400.0,0.00013897,2]
[360832188,1747056638493,-400.0,0.00013897,2]
[360832189,1747056638503,-400.0,0.00013897,2]
[360832190,1747056638513,-762.35,0.00013897,2]
[360832191,1747056638523,-400.0,0.00013897,2]
[360832192,1747056638533,-400.0,0.00013897,2]
[360832193,1747056638543,-400.0,0.00013897,2]
[360832194,1747056638553,-400.0,0.00013897,2]
[360832195,1747056638563,-400.0,0.00013897,2]
[360832196,1747056638574,-413.6,0.00013897,2]
[360832197,1747056638589,-400.0,0.00013897,2]
[360832198,1747056638599,-400.0,0.00013897,2]
[360832199,1747056638608,-400.0,0.00013897,2]
[360832200,1747056638618,-930.51,0.00013897,2]
[360832201,1747056638627,-400.0,0.00013897,2]
[360832202,1747056638637,-2546.54,0.00013897,2]
[360832203,1747056638646,-400.0,0.00013897,2]
[360832204,1747056638656,-4242.91,0.00013897,2]
[360832205,1747056638666,-542.62,0.00013897,2]
[360832206,1747056638677,-702.73,0.00013897,2]
[360832207,1747056638688,-400.0,0.00013897,2]
[360832208,1747056638699,-400.0,0.00013897,2]
[360832209,1747056638709,-842.86,0.00013897,2]
[360832210,1747056638719,-400.0,0.00013897,2]
[360832211,1747056638728,-729.9,0.00013897,2]
[360832212,1747056638738,-400.0,0.00013897,2]
[360832213,1747056638748,-745.66,0.00013897,2]
[360832214,1747056638758,-1243.09,0.00013897,2]
[360832215,1747056638769,-401.11,0.00013897,2]
[360832216,1747056638780,-400.0,0.00013897,2]
[360832217,1747056638789,-400.0,0.00013897,2]
[360832218,1747056638799,-1386.12,0.00013897,2]
[360832220,1747056638808,-400.0,0.00013897,2]
[360832222,1747056638817,-154.545995,0.00013898,2]
[360832223,1747056638827,-151.0,0.00013899,2]
[360832224,1747056638842,-400.0,0.00013899,2]
[360832225,1747056638851,-400.0,0.00013899,2]
[360832226,1747056638860,-689.72,0.00013899,2]
[360832227,1747056638869,-400.0,0.00013899,2]
[360832228,1747056638879,-400.0,0.00013899,2]
[360832229,1747056638888,-151.0,0.000139,2]
[360832230,1747056638897,-3072.17457698,0.000139,2]
[360832231,1747056638906,-2533.66838921,0.00013909,2]
[360832232,1747056638917,-2003.75237005,0.00013913,2]
[360832233,1747056638927,-400.0,0.0001393,2]
[360832234,1747056638937,-400.0,0.0001393,2]
[360832235,1747056638947,-400.0,0.0001393,2]
[360832236,1747056638957,-2830.05,0.0001393,2]
[360832237,1747056638966,-1539.85,0.0001393,2]
[360832238,1747056638976,-400.0,0.0001393,2]
[360832239,1747056638986,-400.0,0.0001393,2]
[360832240,1747056638995,-233.03,0.0001393,2]
[360832241,1747056639004,-400.0,0.0001393,2]
[360832242,1747056639014,-689.72,0.0001393,2]
[360832243,1747056639023,-400.0,0.0001393,2]